fUST/lending_fUST_20240521
["ID","MTS","AMOUNT","RATE_DAILY","PERIOD"]
[327671661,1716301852262,-184.261641,0.00032874,2]
[327671662,1716301852271,-309.53574613,0.00032874,4]
[327671663,1716301852282,-296.90589033,0.00032875,4]
[327671664,1716301852292,-1916.81823892,0.00032875,4]
[327671665,1716301852304,-4332.68781129,0.00032876,13]
[327671680,1716302795981,10000.0,0.00024383,10]
[327671681,1716302807943,7045.02295429,0.00024383,10]
[327671682,1716302814014,8292.993,0.00019,10]
[327671683,1716302822027,10000.0,0.0001,10]
[327671684,1716302828651,10000.0,0.0001,10]
[327671801,1716303032862,-5652.45538393,9.746e-05,2]
[327671803,1716303032872,-189.96457126,0.00015891,2]
[327671805,1716303032882,-155.04341216,0.00015892,2]
[327671807,1716303032891,-302.38073973,0.00015892,2]
[327671810,1716303032901,-658.33611615,0.00015893,2]
[327671813,1716303032911,-2945.5774012,0.00015896,2]
[327671816,1716303032920,-1095.32887004,0.00016398,2]
[327671818,1716303032929,-189.64973947,0.000164,2]
[327671821,1716303032938,-55007.94963156,0.00017627,2]
[327671892,1716303038957,-274.38861044,0.00017626,2]
[327671893,1716303038967,-101.97138956,0.00017627,2]
[327671894,1716303038978,-711.49700755,0.00017627,2]
[327671895,1716303038992,-12266.62688906,0.00017627,2]
[327671896,1716303039002,-30690.32551822,0.00017628,2]
[327672015,1716303043797,-4256.25763027,0.00017628,2]
[327672017,1716303043807,-23989.34236972,0.00017631,2]
[327672019,1716303043819,-910.65763028,0.00017631,2]
[327672021,1716303043828,-192.38451245,0.00017708,2]
[327672022,1716303043838,-693.99987013,0.00017808,2]
[327672033,1716303046798,-2306.00012987,0.00017808,2]
[327672034,1716303046808,-223.17842492,0.00017808,2]
[327672207,1716304240325,-155.04341216,0.00013999,2]
[327672209,1716304240334,-557.45896271,0.00016827,2]
[327672290,1716304244911,-363.82751395,0.00016827,2]
[327672291,1716304244924,-189.96457126,0.00016828,2]
[327672292,1716304244935,-19134.501549,0.00016829,2]
[327672294,1716304244944,-302.38073973,0.00017533,2]
[327672296,1716304244954,-164.23687374,0.00017534,2]
[327672297,1716304244963,-417.32360569,0.0001762,2]
[327672298,1716304244972,-4224.07535635,0.00017773,2]
[327672299,1716304244982,-285.74827739,0.00017808,2]
[327672300,1716304244992,-164.2368737,0.00017851,2]
[327672301,1716304245001,-10298.03974274,0.00017898,2]
[327672302,1716304245013,-156.10796101,0.00017898,2]
[327672303,1716304245023,-138.75203899,0.00018067,2]
[327672304,1716304245035,-24.03869486,0.00018067,2]
[327672305,1716304245045,-164.2368737,0.00018167,2]
[327672306,1716304245055,-164.2368737,0.00018484,2]
[327672307,1716304245065,-164.2368737,0.000188,2]
[327672308,1716304245074,-325.42682521,0.000189,2]
[327672309,1716304245084,-1707.007,0.00019,10]
[327672310,1716304245094,-163.925815,0.00019178,2]
[327672311,1716304245103,-173.077199,0.00019178,2]
[327672312,1716304245113,-200.0,0.0002137,2]
[327672313,1716304245122,-166.666666,0.00021918,2]
[327672314,1716304245131,-4693.15522604,0.00021999,2]
[327672315,1716304245140,-3373.78266972,0.00022,2]
[327672316,1716304245150,-2090.39867159,0.00022,2]
[327672317,1716304245160,-166.666666,0.00022431,2]
[327672318,1716304245172,-166.666666,0.00022944,2]
[327672319,1716304245183,-166.666666,0.00023456,2]
[327672320,1716304245193,-325.42682521,0.000239,2]
[327672321,1716304245203,-166.666666,0.00023969,2]
[327672322,1716304245212,-909.92037244,0.00024377,2]
[327672323,1716304245221,-2954.97704571,0.00024383,10]
[327672324,1716304245231,-280.354924,0.00024384,2]
[327672325,1716304245240,-158.620353,0.00024384,2]
[327672326,1716304245249,-166.666666,0.00024482,2]
[327672327,1716304245259,-362.12773647,0.00025,2]
[327672328,1716304245268,-400.79054117,0.00025204,2]
[327672329,1716304245278,-1396.75539659,0.000266,2]
[327672330,1716304245288,-1000.0,0.00027397,2]
[327672331,1716304245297,-190.5310777,0.00027671,2]
[327672332,1716304245306,-221.60537528,0.00028,2]
[327672333,1716304245316,-325.42682521,0.000289,2]
[327672334,1716304245326,-500.0,0.00028999,2]
[327672335,1716304245335,-500.0,0.00028999,2]
[327672336,1716304245344,-500.0,0.00028999,2]
[327672337,1716304245354,-528.6073424,0.00028999,2]
[327672338,1716304245363,-500.0,0.00028999,2]
[327672339,1716304245373,-371.17450915,0.00028999,2]
[327672340,1716304245382,-369.55759549,0.00028999,2]
[327672341,1716304245392,-500.0,0.00028999,2]
[327672342,1716304245401,-500.0,0.00028999,2]
[327672343,1716304245411,-500.0,0.00028999,2]
[327672344,1716304245423,-363.5134005,0.00028999,2]
[327672345,1716304245432,-550.0,0.00028999,2]
[327672346,1716304245442,-500.0,0.00028999,2]
[327672347,1716304245452,-447.8030659,0.00028999,2]
[327672348,1716304245461,-500.0,0.00028999,2]
[327672349,1716304245471,-500.0,0.00028999,2]
[327672350,1716304245481,-500.0,0.00028999,2]
[327672351,1716304245491,-500.0,0.00028999,2]
[327672352,1716304245500,-400.0,0.00028999,2]
[327672353,1716304245510,-500.0,0.00028999,2]
[327672354,1716304245520,-636.75190505,0.00028999,2]
[327672355,1716304245530,-186.37236236,0.00028999,2]
[327672356,1716304245540,-3000.0,0.00028999,10]
[327672357,1716304245550,-3000.0,0.00028999,10]
[327672358,1716304245561,-2330.28107547,0.00028999,10]
[327672359,1716304245571,-1000.0,0.00028999,3]
[327672360,1716304245580,-22759.76471915,0.00029,17]
[327672371,1716304246016,-872.67904065,0.00029,17]
[327672372,1716304246027,-619.71305479,0.00029,17]
[327672398,1716304248148,-1762.34,0.0002899,3]
[327672399,1716304248158,-32156.87250862,0.00029,17]
[327672400,1716304248167,-33598.74177234,0.00029,2]
[327672401,1716304248184,-347.0081562,0.00029,2]
[327672402,1716304319573,833.0,0.00024383,11]
[327672412,1716304904002,273.37336231,0.00024383,11]
[327672413,1716304919866,273.37336231,0.00024383,11]
[327672500,1716305433100,-155.04341216,9.986e-05,2]
[327672503,1716305433111,-155.04341216,9.987e-05,2]
[327672505,1716305433120,-1350.88655983,9.988e-05,2]
[327672509,1716305433130,-658.33611615,9.998e-05,2]
[327672511,1716305433140,-186.95436808,9.998e-05,2]
[327672514,1716305433149,-73.95803146,0.00013699,2]
[327672519,1716305433161,-167.29197554,0.00013699,2]
[327672522,1716305433171,-921.28647666,0.00014,2]
[327672525,1716305433180,-2108.354901,0.00015,2]
[327672528,1716305433189,-189.96457126,0.00016291,2]
[327672531,1716305433199,-3029.8444931,0.00016292,2]
[327672534,1716305433213,-999.63689439,0.00016292,2]
[327672544,1716305438809,-2231.09865779,0.00016292,2]
[327672547,1716305438822,-318.47,0.00016292,2]
[327672631,1716305441329,-18320.94995472,0.00016292,2]
[327672632,1716305441340,-193.68935764,0.00016818,2]
[327672633,1716305441350,-207.02451915,0.00016918,2]
[327672634,1716305441360,-305.34348314,0.00018,2]
[327672635,1716305441370,-155.04341216,0.00019411,2]
[327672636,1716305441380,-193.68935762,0.00019412,2]
[327672637,1716305441391,-241.250007,0.00020548,2]
[327672638,1716305441401,-3918.85284736,0.000209,2]
[327672639,1716305441412,-4693.15522604,0.00021,2]
[327672640,1716305441422,-200.0,0.0002137,2]
[327672641,1716305441431,-166.666666,0.00021918,2]
[327672642,1716305441442,-159.73051569,0.00022006,2]
[327672643,1716305441452,-193.68935762,0.00022007,2]
[327672644,1716305441465,-2421.74818551,0.00022283,2]
[327672645,1716305441475,-166.666666,0.00022431,2]
[327672646,1716305441484,-986.64541553,0.00022847,2]
[327672647,1716305441494,-166.666666,0.00022944,2]
[327672648,1716305441503,-166.666666,0.00023456,2]
[327672649,1716305441512,-166.666666,0.00023969,2]
[327672650,1716305441522,-187.1961905,0.00024,2]
[327672651,1716305441532,-226.54600389,0.00024382,2]
[327672652,1716305441543,-487.17938788,0.00024382,2]
[327672653,1716305441553,-420.0,0.00024382,2]
[327672654,1716305441563,-370.07717164,0.00024382,2]
[327672655,1716305441572,-500.0,0.00024382,2]
[327672656,1716305441582,-455.91170871,0.00024382,2]
[327672657,1716305441592,-450.0,0.00024382,2]
[327672658,1716305441602,-155.04341216,0.00024383,2]
[327672659,1716305441612,-285.83068385,0.00024383,2]
[327672660,1716305441622,-12325.94994712,0.00024383,2]
[327672661,1716305441632,-1116.0702584,0.00024383,2]
[327672747,1716305445768,-15023.59128235,0.00024383,2]
[327672749,1716305445780,-9513.18539751,0.00024383,2]
[327673009,1716306632274,-818.5944738,8.951e-05,2]
[327673011,1716306632283,-455.56419663,8.951e-05,2]
[327673013,1716306632296,-2598.22535153,8.952e-05,2]
[327673015,1716306632308,-585.82271891,8.952e-05,2]
[327673017,1716306632319,-283.2738311,8.952e-05,2]
[327673020,1716306632331,-1029.12181184,8.952e-05,2]
[327673022,1716306632340,-487.85550363,8.953e-05,2]
[327673024,1716306632349,-550.85396294,8.953e-05,2]
[327673026,1716306632358,-316.32323638,8.953e-05,2]
[327673028,1716306632367,-7896.38308987,8.954e-05,2]
[327673030,1716306632377,-909.92037244,8.957e-05,2]
[327673032,1716306632386,-302.38073973,8.957e-05,2]
[327673033,1716306632396,-1095.32887004,8.958e-05,2]
[327673034,1716306632405,-250.0,8.959e-05,2]
[327673036,1716306632415,-5328.42618995,9.942e-05,2]
[327673038,1716306632425,-9106.40687658,9.964e-05,2]
[327673040,1716306632434,-18480.76286517,9.982e-05,2]
[327673041,1716306632446,-2807.92,9.982e-05,2]
[327673079,1716306638225,-335.08,8.388e-05,2]
[327673080,1716306638243,-1374.3719652,8.388e-05,2]
[327673081,1716306638253,-3611.31713483,9.982e-05,2]
[327673082,1716306638262,-914.31090001,0.00010736,2]
[327673083,1716306638274,-2145.92904593,0.00010736,2]
[327673085,1716306638414,-2083.39167087,0.00010736,2]
[327673086,1716306638426,-458.41391459,0.00010736,2]
[327673087,1716306638435,-272.66617235,0.00012135,2]
[327673088,1716306638447,-385.6699438,0.00012135,2]
[327673089,1716306638456,-387.9871588,0.00012136,2]
[327673090,1716306638466,-875.51231238,0.000125,2]
[327673133,1716306643655,-6058.05693755,0.000125,2]
[327673136,1716306643665,-2403.5481073,0.00013699,2]
[327673138,1716306643674,-1957.1978938,0.00013699,2]
[327673139,1716306643684,-162.275109,0.00013699,2]
[327673142,1716306643694,-921.28647666,0.00014,2]
[327673143,1716306643703,-155.04341216,0.00014998,2]
[327673145,1716306643714,-155.04341216,0.00014998,2]
[327673147,1716306643724,-1350.88655983,0.00014999,2]
[327673149,1716306643735,-6171.80664214,0.00015,2]
[327673159,1716306643813,-9280.51853721,0.00015,2]
[327673162,1716306643824,-8519.93215818,0.00015,2]
[327673165,1716306643835,-189.96457126,0.00016,2]
[327673168,1716306643844,-923.32154543,0.00016001,2]
[327673171,1716306643854,-10454.14770375,0.00017898,2]
[327673174,1716306643863,-2336.54383217,0.00018,2]
[327673179,1716306643883,-293.26520376,0.00018,2]
[327673182,1716306643896,-12120.36854181,0.00018,2]
[327673184,1716306643907,-738.95098462,0.00018,2]
[327673185,1716306643917,-151.0,0.00018,2]
[327673187,1716306643926,-151.0,0.00018,2]
[327673189,1716306643935,-151.0,0.00018,2]
[327673191,1716306643944,-151.0,0.00018,2]
[327673193,1716306643954,-151.0,0.00018,2]
[327673195,1716306643964,-151.0,0.00018,2]
[327673196,1716306643973,-305.34348314,0.00018287,2]
[327673198,1716306643984,-253.50295969,0.00019178,2]
[327673200,1716306643993,-500.9552429,0.00019178,2]
[327673202,1716306644003,-188.047818,0.00019178,2]
[327673204,1716306644012,-500.0,0.00019178,2]
[327673206,1716306644021,-231.05268876,0.00019178,2]
[327673208,1716306644031,-500.0,0.00019178,2]
[327673210,1716306644040,-500.0,0.00019178,2]
[327673212,1716306644049,-500.0,0.00019178,2]
[327673213,1716306644059,-500.0,0.00019178,2]
[327673215,1716306644068,-500.0,0.00019178,2]
[327673217,1716306644078,-500.0,0.00019178,2]
[327673219,1716306644088,-500.0,0.00019178,2]
[327673221,1716306644097,-500.0,0.00019178,2]
[327673223,1716306644107,-500.0,0.00019178,2]
[327673225,1716306644116,-500.0,0.00019178,2]
[327673227,1716306644126,-500.0,0.00019178,2]
[327673240,1716306644226,-500.0,0.00019178,2]
[327673242,1716306644256,-500.0,0.00019178,2]
[327673245,1716306644266,-253.29412512,0.00019178,2]
[327673247,1716306644275,-500.0,0.00019178,2]
[327673249,1716306644285,-434.11109859,0.00019178,2]
[327673250,1716306644295,-500.0,0.00019178,2]
[327673252,1716306644305,-500.0,0.00019178,2]
[327673254,1716306644315,-500.0,0.00019178,2]
[327673256,1716306644324,-500.0,0.00019178,2]
[327673258,1716306644334,-500.0,0.00019178,2]
[327673261,1716306644344,-500.0,0.00019178,2]
[327673262,1716306644353,-500.0,0.00019178,2]
[327673264,1716306644363,-500.0,0.00019178,2]
[327673266,1716306644376,-500.0,0.00019178,2]
[327673268,1716306644387,-500.0,0.00019178,2]
[327673270,1716306644403,-500.0,0.00019178,2]
[327673272,1716306644413,-500.0,0.00019178,2]
[327673275,1716306644423,-500.0,0.00019178,2]
[327673276,1716306644432,-132.9918384,0.00019178,2]
[327673279,1716306644446,-367.0081616,0.00019178,2]
[327673281,1716306644456,-52.43682523,0.00019178,2]
[327673284,1716306644476,-447.56317477,0.00019178,2]
[327673286,1716306644488,-500.0,0.00019178,2]
[327673288,1716306644497,-500.0,0.00019178,2]
[327673290,1716306644506,-500.0,0.00019178,2]
[327673292,1716306644516,-500.0,0.00019178,2]
[327673294,1716306644525,-500.0,0.00019178,2]
[327673296,1716306644535,-571.26629,0.00019178,2]
[327673298,1716306644544,-54.29483279,0.00019178,2]
[327673300,1716306644556,-96.70516721,0.00019178,2]
[327673302,1716306644567,-166.333931,0.00019178,2]
[327673304,1716306644576,-223.74358816,0.000192,2]
[327673306,1716306644586,-923.32154539,0.00020144,2]
[327673308,1716306644596,-162.275109,0.00020548,2]
[327673310,1716306644606,-258.932482,0.00020912,2]
[327673312,1716306644617,-151.0,0.00020913,2]
[327673314,1716306644626,-151.0,0.00020913,2]
[327673316,1716306644638,-4693.15522604,0.00021,2]
[327673318,1716306644648,-166.666666,0.00021918,2]
[327673320,1716306644657,-1.3662852,0.00021918,2]
[327673324,1716306644683,-149.6337148,0.00021918,2]
[327673326,1716306644693,-151.0,0.00021918,2]
[327673328,1716306644703,-151.0,0.00022281,2]
[327673330,1716306644714,-151.0,0.00022281,2]
[327673332,1716306644724,-151.0,0.00022282,2]
[327673333,1716306644737,-151.0,0.00022282,2]
[327673336,1716306644747,-1614.49879034,0.00022283,2]
[327673337,1716306644756,-755.77262327,0.000223,2]
[327673340,1716306644766,-166.666666,0.00022431,2]
[327673342,1716306644776,-15763.37207068,0.0002255,2]
[327673343,1716306644786,-151.0,0.0002255,2]
[327673345,1716306644796,-151.0,0.0002255,2]
[327673347,1716306644806,-151.0,0.0002255,2]
[327673349,1716306644816,-151.0,0.0002255,2]
[327673352,1716306644826,-151.0,0.0002255,2]
[327673354,1716306644836,-151.0,0.0002255,2]
[327673356,1716306644846,-151.0,0.0002255,2]
[327673358,1716306644855,-151.0,0.0002255,2]
[327673360,1716306644865,-166.666666,0.00022944,2]
[327673362,1716306644874,-155.04341216,0.00023,2]
[327673364,1716306644885,-166.666666,0.00023456,2]
[327673365,1716306644894,-166.666666,0.00023969,2]
[327673367,1716306644904,-417.32360569,0.00024122,2]
[327673370,1716306644913,-4224.07535635,0.00024241,2]
[327673372,1716306644923,-923.32154539,0.00024288,2]
[327673373,1716306644931,-3408.46497944,0.00024383,7]
[327673376,1716306644942,-5943.34521918,0.00024383,2]
[327673378,1716306644951,-223.7127418,0.00024383,2]
[327673379,1716306644961,-2088.06673595,0.00024383,2]
[327673381,1716306644970,-11117.85581633,0.00024383,2]
[327673383,1716306644979,-155.04341216,0.00024383,2]
[327673385,1716306644994,-16152.15406797,0.00024383,2]
[327673388,1716306645003,-299.53606579,0.00024383,2]
[327673390,1716306645013,-155.04341216,0.00024383,2]
[327673392,1716306645023,-285.83068385,0.00024383,2]
[327673394,1716306645032,-155.04341216,0.00024383,2]
[327673396,1716306645041,-281.31656163,0.00024383,2]
[327673398,1716306645051,-151.0,0.00024383,2]
[327673399,1716306645060,-165.56169,0.00024383,2]
[327673402,1716306645070,-151.0,0.00024383,2]
[327673404,1716306645079,-151.0,0.00024383,2]
[327673406,1716306645089,-202.74475,0.00024383,2]
[327673408,1716306645099,-151.0,0.00024383,2]
[327673410,1716306645108,-151.0,0.00024383,2]
[327673412,1716306645118,-151.0,0.00024383,2]
[327673413,1716306645127,-151.0,0.00024383,2]
[327673415,1716306645137,-151.0,0.00024383,2]
[327673417,1716306645146,-173.08283,0.00024384,2]
[327673419,1716306645156,-445.918372,0.00024384,2]
[327673421,1716306645165,-15195.96977411,0.000244,2]
[327673423,1716306645175,-151.0,0.000244,2]
[327673425,1716306645184,-151.0,0.000244,2]
[327673427,1716306645194,-151.0,0.000244,2]
[327673429,1716306645204,-151.0,0.000244,2]
[327673431,1716306645213,-151.0,0.000244,2]
[327673433,1716306645222,-151.0,0.000244,2]
[327673435,1716306645235,-166.666666,0.00024482,2]
[327673438,1716306645245,-209.80164977,0.00025,2]
[327673439,1716306645254,-759.88696777,0.00025,2]
[327673442,1716306645264,-34828.56701771,0.00025,2]
[327673444,1716306645273,-1019.7779145,0.00025,2]
[327673445,1716306645282,-222.429158,0.00025,2]
[327673447,1716306645291,-151.0,0.00025,2]
[327673449,1716306645301,-151.0,0.00025,2]
[327673451,1716306645311,-151.0,0.00025,2]
[327673453,1716306645320,-151.0,0.00025,2]
[327673454,1716306645329,-198.932246,0.00025,2]
[327673455,1716306645339,-167.45627556,0.00025088,2]
[327673456,1716306645348,-362.12773647,0.00025088,2]
[327673457,1716306645357,-8430.7466021,0.0002509,2]
[327673458,1716306645367,-993.52615052,0.000266,2]
[327673459,1716306645376,-1614.49879034,0.00027283,2]
[327673460,1716306645386,-434.34091977,0.00027397,2]
[327673461,1716306645396,-221.60537528,0.00028,2]
[327673462,1716306645407,-923.32154539,0.00028431,2]
[327673463,1716306645416,-154.73694719,0.0003,2]
[327673464,1716306645426,-5795.7187114,0.0003,2]
[327673465,1716306645435,-151.0,0.0003,2]
[327673466,1716306645445,-151.0,0.0003,2]
[327673467,1716306645454,-290.80286521,0.0003,2]
[327673468,1716306645464,-247.0,0.0003,2]
[327673469,1716306645473,-151.0,0.0003,2]
[327673470,1716306645486,-151.0,0.00030137,2]
[327673471,1716306645495,-217.523278,0.00030137,2]
[327673472,1716306645504,-153.0,0.00030301,2]
[327673473,1716306645513,-176.0635699,0.00030301,2]
[327673474,1716306645522,-153.0,0.00030301,2]
[327673475,1716306645532,-153.0,0.00030301,2]
[327673476,1716306645540,-445.918372,0.0003031,2]
[327673477,1716306645550,-153.0,0.00030986,2]
[327673478,1716306645559,-291.4199223,0.00030986,2]
[327673479,1716306645569,-322.7973437,0.00030986,2]
[327673480,1716306645578,-291.4199223,0.00030986,2]
[327673481,1716306645588,-153.0,0.00030986,2]
[327673482,1716306645599,-153.0,0.00030986,2]
[327673483,1716306645608,-153.0,0.00030986,2]
[327673484,1716306645618,-291.4199223,0.00030986,2]
[327673485,1716306645628,-153.0,0.00030986,2]
[327673486,1716306645640,-291.4199223,0.00030986,2]
[327673488,1716306645650,-153.0,0.00030986,2]
[327673490,1716306645660,-153.0,0.00030986,2]
[327673491,1716306645670,-291.4199223,0.00030986,2]
[327673492,1716306645679,-374.2375177,0.00031228,4]
[327673494,1716306645689,-319.33212972,0.00031229,4]
[327673496,1716306645698,-151.0,0.0003126,2]
[327673497,1716306645709,-151.0,0.0003126,2]
[327673499,1716306645719,-628.0,0.000314,2]
[327673503,1716306645729,-153.0,0.00031479,2]
[327673505,1716306645742,-153.0,0.00031479,2]
[327673507,1716306645751,-153.0,0.00031479,2]
[327673511,1716306645761,-153.0,0.00031479,2]
[327673514,1716306645771,-153.0,0.00031479,2]
[327673517,1716306645781,-153.0,0.00031479,2]
[327673521,1716306645791,-605.8271357,0.0003156,2]
[327673522,1716306645801,-291.4199223,0.00031808,2]
[327673524,1716306645810,-153.0,0.00031808,2]
[327673527,1716306645912,-291.4199223,0.00031808,2]
[327673528,1716306645922,-153.0,0.00031808,2]
[327673529,1716306645931,-153.0,0.00031808,2]
[327673530,1716306645941,-153.0,0.00031808,2]
[327673531,1716306645950,-153.0,0.00031808,2]
[327673532,1716306645960,-153.0,0.00031808,2]
[327673533,1716306645969,-153.0,0.00031808,2]
[327673534,1716306645978,-153.0,0.00031808,2]
[327673535,1716306645990,-153.0,0.00031808,2]
[327673536,1716306645999,-153.0,0.00031808,2]
[327673537,1716306646009,-153.0,0.00031808,2]
[327673538,1716306646019,-153.0,0.00031808,2]
[327673540,1716306646029,-153.0,0.00031808,2]
[327673541,1716306646039,-153.0,0.00031808,2]
[327673542,1716306646049,-153.0,0.00031808,2]
[327673543,1716306646059,-153.0,0.00031808,2]
[327673544,1716306646069,-153.0,0.00031808,2]
[327673545,1716306646079,-153.0,0.00031808,2]
[327673546,1716306646088,-153.0,0.00031808,2]
[327673547,1716306646098,-153.0,0.00031808,2]
[327673548,1716306646108,-153.0,0.00031808,2]
[327673549,1716306646118,-153.0,0.00031808,2]
[327673550,1716306646128,-153.0,0.00031808,2]
[327673551,1716306646137,-165.2753331,0.00031808,2]
[327673552,1716306646146,-153.0,0.00031808,2]
[327673553,1716306646156,-153.0,0.00031808,2]
[327673554,1716306646165,-153.0,0.00031808,2]
[327673555,1716306646174,-153.0,0.00031808,2]
[327673556,1716306646183,-153.0,0.00031808,2]
[327673557,1716306646193,-153.0,0.00031808,2]
[327673558,1716306646202,-153.0,0.00031808,2]
[327673559,1716306646212,-153.0,0.00031808,2]
[327673561,1716306646221,-153.0,0.00031808,2]
[327673563,1716306646231,-153.0,0.00031808,2]
[327673565,1716306646242,-153.0,0.00031808,2]
[327673567,1716306646251,-500.0,0.00032,7]
[327673569,1716306646260,-500.0,0.00032,7]
[327673571,1716306646269,-500.0,0.00032,7]
[327673572,1716306646277,-500.0,0.00032,7]
[327673574,1716306646287,-500.0,0.00032,7]
[327673576,1716306646296,-500.0,0.00032,7]
[327673578,1716306646307,-500.0,0.00032,7]
[327673580,1716306646316,-500.0,0.00032,7]
[327673582,1716306646325,-500.0,0.00032,7]
[327673584,1716306646335,-500.0,0.00032,7]
[327673586,1716306646344,-500.0,0.00032,7]
[327673588,1716306646353,-500.0,0.00032,7]
[327673590,1716306646362,-500.0,0.00032,7]
[327673592,1716306646371,-500.0,0.00032,7]
[327673594,1716306646381,-500.0,0.00032,7]
[327673596,1716306646390,-500.0,0.00032,7]
[327673598,1716306646400,-500.0,0.00032,7]
[327673600,1716306646409,-500.0,0.00032,7]
[327673602,1716306646419,-500.0,0.00032,7]
[327673604,1716306646428,-500.0,0.00032,7]
[327673606,1716306646438,-500.0,0.00032,7]
[327673608,1716306646447,-500.0,0.00032,7]
[327673610,1716306646456,-500.0,0.00032,7]
[327673612,1716306646465,-500.0,0.00032,7]
[327673613,1716306646474,-500.0,0.00032,7]
[327673615,1716306646485,-500.0,0.00032,7]
[327673616,1716306646494,-500.0,0.00032,7]
[327673617,1716306646504,-500.0,0.00032,7]
[327673618,1716306646515,-500.0,0.00032,7]
[327673619,1716306646524,-500.0,0.00032,7]
[327673620,1716306646533,-500.0,0.00032,7]
[327673621,1716306646543,-500.0,0.00032,7]
[327673622,1716306646553,-518.0,0.00032,7]
[327673623,1716306646563,-214.155002,0.00032,2]
[327673624,1716306646573,-151.0,0.00032,2]
[327673625,1716306646584,-151.0,0.00032,2]
[327673626,1716306646593,-1614.49879034,0.00032283,2]
[327673627,1716306646605,-204.4918902,0.00032301,2]
[327673628,1716306646615,-204.4918902,0.00032301,2]
[327673629,1716306646625,-204.4918902,0.00032301,2]
[327673630,1716306646638,-204.4918902,0.00032301,2]
[327673631,1716306646647,-204.4918902,0.00032301,2]
[327673632,1716306646657,-204.4918902,0.00032301,2]
[327673633,1716306646666,-204.4918902,0.00032301,2]
[327673634,1716306646678,-204.4918902,0.00032301,2]
[327673635,1716306646688,-204.4918902,0.00032301,2]
[327673636,1716306646698,-204.4918902,0.00032301,2]
[327673637,1716306646709,-204.4918902,0.00032301,2]
[327673638,1716306646718,-153.0,0.00032356,2]
[327673639,1716306646729,-153.0,0.00032356,2]
[327673640,1716306646741,-153.0,0.00032356,2]
[327673641,1716306646752,-153.0,0.00032356,2]
[327673642,1716306646761,-153.0,0.00032356,2]
[327673643,1716306646771,-923.32154539,0.00032574,2]
[327673644,1716306646780,-2071.83839469,0.00032599,10]
[327673645,1716306646790,-9262.89294554,0.000326,5]
[327673646,1716306646799,-151.0,0.000326,2]
[327673647,1716306646809,-222.926831,0.000326,2]
[327673648,1716306646819,-24945.98,0.00032602,6]
[327673649,1716306646828,-24945.98,0.00032602,6]
[327673650,1716306646838,-24945.98,0.00032602,6]
[327673651,1716306646847,-24945.98,0.00032602,6]
[327673652,1716306646857,-18001.17971673,0.00032602,6]
[327673721,1716306647917,-400.79054117,0.00025,2]
[327673723,1716306647928,-153.0,0.00030301,2]
[327673725,1716306647938,-291.4199223,0.00030986,2]
[327673727,1716306647948,-153.0,0.00030986,2]
[327673729,1716306647957,-153.0,0.00031808,2]
[327673731,1716306647967,-153.0,0.00032356,2]
[327673733,1716306647977,-4097.39944265,0.00032602,6]
[327674856,1716306751796,-772.21556016,9.997e-05,2]
[327674858,1716306751822,-155.04341216,9.998e-05,2]
[327674859,1716306751844,-172.94102768,9.998e-05,2]
[327675394,1716306975255,-2506.62310017,9.998e-05,2]
[327675395,1716306975275,-574.92527022,9.998e-05,2]
[327675396,1716306975297,-11859.04392628,9.998e-05,2]
[327675397,1716306975318,-1852.45274529,9.998e-05,2]
[327675398,1716306975340,-3630.80270187,9.998e-05,2]
[327675399,1716306975361,-364.9556048,9.998e-05,2]
[327675400,1716306975382,-32952.49665137,0.00015,2]
[327675402,1716307055342,-250.70890657,9.898e-05,2]